[Event "94th FRA-ch Women 2019"]
[Site "Chartres"]
[Date "2019.08.20"]
[Round "4.3"]
[White "Guichard, Pauline"]
[Black "Milliet, Sophie"]
[Result "1/2-1/2"]
[ECO "A16"]
[WhiteElo "2405"]
[BlackElo "2397"]
[Annotator "NA"]
[PlyCount "97"]
[EventDate "2019.08.17"]
[EventType "tourn"]
[EventCountry "FRA"]
[SourceTitle "playchess.com"]
[Source "ChessBase"]
[SourceQuality "1"]
[TimeControl "40/5400+30:1800+30"]

1. c4 {[%emt 0:00:00]} Nf6 {[%emt 0:00:00]} 2. g3 {[%emt 0:00:00]} g6 {[%emt 0:00:03]} 3. Bg2 {[%emt 0:00:00]} Bg7 {[%emt 0:00:03]} 4. Nc3 {[%emt 0:00:07]} O-O {[%emt 0:00:08]} 5. d3 {[%emt 0:01:11]} d6 {[%emt 0:00:58]} 6. Rb1 {[%emt 0:00:34]} c5 {[%emt 0:07:13]} 7. a3 {[%emt 0:08:21]} Na6 {[%emt 0:25:09]} 8. Nf3 {[%emt 0:03:08]} Nc7 {[%emt 0:00:37]} 9. O-O {[%emt 0:02:16]} Rb8 {[%emt 0:00:42]} 10. b4 {[%emt 0:03:13]} cxb4 {[%emt 0:23:22]} 11. axb4 {[%emt 0:00:48]} d5 {[%emt 0:00:04]} 12. Bf4 {[%emt 0:08:02]} dxc4 {[%emt 0:00:03]} 13. dxc4 {[%emt 0:01:01]} Nd7 {[%emt 0:00:06]} 14. Qd3 {[%emt 0:08:35]} e5 {[%emt 0:00:35]} 15. Bg5 {[%emt 0:02:02]} f6 {[%emt 0:00:11]} 16. Be3 {[%emt 0:07:07]} Nb6 {[%emt 0:02:31]} 17. Qc2 {[%emt 0:08:17]} Nxc4 {[%emt 0:08:36]} 18. Bxa7 {[%emt 0:00:14]} Ra8 {[%emt 0:00:03]} 19. Ra1 {[%emt 0:00:42]} Be6 {[%emt 0:01:12]} 20. Rfd1 {[%emt 0:04:05]} Qc8 {[%emt 0:00:26]} 21. Nd2 {[%emt 0:02:13]} Nxd2 {[%emt 0:10:59]} 22. Qxd2 {[%emt 0:00:05]} Rf7 {[%emt 0:01:11]} 23. Qe3 {[%emt 0:06:14]} Na6 {[%emt 0:10:19]} 24. Bb6 {[%emt 0:10:53]} Rd7 {[%emt 0:04:06]} 25. Rxd7 {[%emt 0:00:29]} Qxd7 {[%emt 0:00:11]} 26. Rd1 {[%emt 0:08:59]} Qf7 {[%emt 0:00:01]} 27. Qe4 {[%emt 0:00:44]} Rc8 {[%emt 0:01:38]} 28. Nb5 {[%emt 0:03:16]} Bf8 {[%emt 0:00:34]} 29. Ba5 {[%emt 0:01:44]} b6 {[%emt 0:00:35]} 30. Bxb6 {[%emt 0:00:07]} Nxb4 {[%emt 0:00:02]} 31. h4 {[%emt 0:02:16]} Rb8 {[%emt 0:00:26]} 32. Nd6 {[%emt 0:00:10]} Bxd6 {[%emt 0:00:27]} 33. Rxd6 {[%emt 0:00:05]} Nd5 {[%emt 0:02:02]} 34. Bc5 {[%emt 0:02:51]} Ne7 {[%emt 0:00:04]} 35. Ra6 {[%emt 0:01:07]} Bd5 {[%emt 0:00:54]} 36. Qd3 {[%emt 0:01:47]} Bxg2 {[%emt 0:00:10]} 37. Kxg2 {[%emt 0:00:04]} Qd5+ {[%emt 0:01:46]} 38. Qxd5+ {[%emt 0:00:06]} Nxd5 {[%emt 0:00:01]} 39. Rd6 {[%emt 0:00:18]} Nc3 {[%emt 0:00:11]} 40. Rxf6 {[%emt 0:00:35]} Nxe2 {[%emt 0:01:15]} 41. Re6 {[%emt 0:07:12]} Nc1 {[%emt 0:00:53]} 42. Be3 {[%emt 0:10:19]} Nd3 {[%emt 0:00:19]} 43. Re7 {[%emt 0:00:51]} Rb2 {[%emt 0:14:58]} 44. Kf3 {[%emt 0:07:22]} h5 {[%emt 0:00:14]} 45. Kg2 {[%emt 0:01:48]} Ne1+ {[%emt 0:09:35]} 46. Kf1 {[%emt 0:05:34]} Nf3 {[%emt 0:00:02]} 47. Kg2 {[%emt 0:03:55]} Ne1+ {[%emt 0:00:03]} 48. Kf1 {[%emt 0:01:35]} Nf3 {[%emt 0:00:03]} 49. Kg2 {[%emt 0:00:29]} 1/2-1/2

[Event "94th FRA-ch Women 2019"]
[Site "Chartres"]
[Date "2019.08.20"]
[Round "4.4"]
[White "Richard, Emma"]
[Black "Broly, Mathilde"]
[Result "1/2-1/2"]
[ECO "C77"]
[WhiteElo "2104"]
[BlackElo "2177"]
[Annotator "NA"]
[PlyCount "56"]
[EventDate "2019.08.17"]
[EventType "tourn"]
[EventCountry "FRA"]
[SourceTitle "playchess.com"]
[Source "ChessBase"]
[SourceQuality "1"]
[TimeControl "40/5400+30:1800+30"]

1. e4 {[%emt 0:00:00]} e5 {[%emt 0:00:00]} 2. Nf3 {[%emt 0:00:00]} Nc6 {[%emt 0:00:00]} 3. Bb5 {[%emt 0:00:00]} a6 {[%emt 0:00:34]} 4. Ba4 {[%emt 0:00:00]} Nf6 {[%emt 0:00:41]} 5. d3 {[%emt 0:00:20]} b5 {[%emt 0:05:24]} 6. Bb3 {[%emt 0:02:47]} Bc5 {[%emt 0:06:36]} 7. Nc3 {[%emt 0:00:16]} d6 {[%emt 0:02:55]} 8. Nd5 {[%emt 0:02:02]} Be6 {[%emt 0:04:51]} 9. Bg5 {[%emt 0:06:59]} Na5 {[%emt 0:08:34]} 10. Nxf6+ {[%emt 0:30:36]} gxf6 {[%emt 0:00:46]} 11. Bh4 {[%emt 0:01:32]} Nxb3 {[%emt 0:12:15]} 12. axb3 {[%emt 0:01:42]} Rg8 {[%emt 0:00:12]} 13. d4 {[%emt 0:11:48]} exd4 {[%emt 0:01:12]} 14. Nxd4 {[%emt 0:00:14]} Rg4 {[%emt 0:00:11]} 15. Nxe6 {[%emt 0:02:48]} Rxe4+ {[%emt 0:00:29]} 16. Kd2 {[%emt 0:10:03]} Rxe6 {[%emt 0:00:52]} 17. Qh5 {[%emt 0:03:28]} Qe7 {[%emt 0:13:29]} 18. Rhe1 {[%emt 0:03:09]} Kd7 {[%emt 0:07:38]} 19. Rxe6 {[%emt 0:13:12]} fxe6 {[%emt 0:01:10]} 20. Qf3 {[%emt 0:00:17]} c6 {[%emt 0:05:06]} 21. Bxf6 {[%emt 0:05:38]} Qf7 {[%emt 0:01:41]} 22. g4 {[%emt 0:01:16]} Bd4 {[%emt 0:13:30]} 23. g5 {[%emt 0:00:04]} Bxb2 {[%emt 0:00:08]} 24. Ra2 {[%emt 0:01:22]} Bd4 {[%emt 0:02:43]} 25. c3 {[%emt 0:00:26]} Bb6 {[%emt 0:00:38]} 26. h4 {[%emt 0:00:33]} Bd8 {[%emt 0:02:50]} 27. Ra1 {[%emt 0:00:25]} a5 {[%emt 0:01:45]} 28. c4 {[%emt 0:01:45]} b4 {[%emt 0:07:50]} 1/2-1/2

[Event "94th FRA-ch Women 2019"]
[Site "Chartres"]
[Date "2019.08.20"]
[Round "4.5"]
[White "Safranska, Anda"]
[Black "Thomas, Anysia"]
[Result "1-0"]
[ECO "B06"]
[WhiteElo "2128"]
[BlackElo "2158"]
[Annotator "NA"]
[PlyCount "175"]
[EventDate "2019.08.17"]
[EventType "tourn"]
[EventCountry "FRA"]
[SourceTitle "playchess.com"]
[Source "ChessBase"]
[SourceQuality "1"]
[TimeControl "40/5400+30:1800+30"]

1. Nf3 {[%emt 0:00:00]} g6 {[%emt 0:00:00]} 2. e4 {[%emt 0:00:04]} c5 {[%emt 0:00:00]} 3. c3 {[%emt 0:00:11]} d5 {[%emt 0:00:29]} 4. e5 {[%emt 0:00:24]} Bg7 {[%emt 0:01:19]} 5. d4 {[%emt 0:00:24]} Nc6 {[%emt 0:00:09]} 6. Bb5 {[%emt 0:00:10]} Nh6 {[%emt 0:04:04]} 7. O-O {[%emt 0:01:28]} cxd4 {[%emt 0:03:46]} 8. cxd4 {[%emt 0:02:56]} O-O {[%emt 0:04:47]} 9. Bxc6 {[%emt 0:00:53]} bxc6 {[%emt 0:00:04]} 10. h3 {[%emt 0:00:16]} f6 {[%emt 0:04:48]} 11. exf6 {[%emt 0:00:31]} exf6 {[%emt 0:00:08]} 12. Nc3 {[%emt 0:00:17]} Nf7 {[%emt 0:01:19]} 13. Re1 {[%emt 0:06:23]} Nd6 {[%emt 0:09:40]} 14. Bf4 {[%emt 0:04:41]} Bf5 {[%emt 0:05:53]} 15. Rc1 {[%emt 0:11:21]} Nc4 {[%emt 0:12:14]} 16. Na4 {[%emt 0:03:01]} g5 {[%emt 0:00:12]} 17. Bg3 {[%emt 0:01:17]} Re8 {[%emt 0:03:07]} 18. b3 {[%emt 0:04:34]} Nb6 {[%emt 0:02:34]} 19. Nc5 {[%emt 0:01:14]} Bf8 {[%emt 0:01:50]} 20. Nh2 {[%emt 0:05:56]} Rxe1+ {[%emt 0:04:39]} 21. Qxe1 {[%emt 0:00:19]} Qe8 {[%emt 0:00:58]} 22. Qd2 {[%emt 0:00:41]} Qf7 {[%emt 0:02:50]} 23. h4 {[%emt 0:18:47]} h6 {[%emt 0:04:57]} 24. Nd3 {[%emt 0:10:51]} Qg6 {[%emt 0:06:22]} 25. Nb4 {[%emt 0:03:02]} Rc8 {[%emt 0:13:03]} 26. Na6 {[%emt 0:07:00]} Be4 {[%emt 0:04:44]} 27. hxg5 {[%emt 0:04:06]} hxg5 {[%emt 0:00:39]} 28. Nc5 {[%emt 0:04:55]} Bf5 {[%emt 0:00:39]} 29. Nf3 {[%emt 0:03:06]} Re8 {[%emt 0:03:03]} 30. Re1 {[%emt 0:00:22]} Rxe1+ {[%emt 0:01:05]} 31. Qxe1 {[%emt 0:00:12]} Be4 {[%emt 0:01:42]} 32. Nd2 {[%emt 0:00:46]} Bf5 {[%emt 0:01:54]} 33. Qe3 {[%emt 0:00:46]} Nd7 {[%emt 0:00:45]} 34. Na4 {[%emt 0:02:28]} Bg4 {[%emt 0:00:46]} 35. f3 {[%emt 0:00:11]} Bf5 {[%emt 0:00:16]} 36. Qc3 {[%emt 0:00:32]} Qe8 {[%emt 0:01:34]} 37. Kf2 {[%emt 0:01:02]} Qc8 {[%emt 0:00:51]} 38. Nf1 {[%emt 0:01:21]} Qa6 {[%emt 0:00:42]} 39. Ne3 {[%emt 0:00:34]} Bd3 {[%emt 0:00:42]} 40. Kg1 {[%emt 0:01:55]} Bb5 {[%emt 0:00:27]} 41. Qc2 {[%emt 0:30:31]} Bd3 {[%emt 0:02:19]} 42. Qd2 {[%emt 0:00:00]} Bg6 {[%emt 0:02:33]} 43. Nd1 {[%emt 0:00:00]} Kf7 {[%emt 0:10:28]} 44. Bc7 {[%emt 0:00:00]} Qb7 {[%emt 0:03:44]} 45. Bg3 {[%emt 0:00:00]} Qa6 {[%emt 0:02:13]} 46. Nf2 {[%emt 0:00:00]} Qb5 {[%emt 0:01:00]} 47. Bc7 {[%emt 0:00:00]} Qb4 {[%emt 0:01:52]} 48. Ba5 {[%emt 0:00:00]} Qd6 {[%emt 0:05:42]} 49. Qc1 {[%emt 0:01:20]} Qe6 {[%emt 0:00:22]} 50. Kf1 {[%emt 0:00:45]} c5 {[%emt 0:01:15]} 51. Bc3 {[%emt 0:00:27]} Qa6+ {[%emt 0:02:14]} 52. Ke1 {[%emt 0:00:33]} cxd4 {[%emt 0:02:09]} 53. Bxd4 {[%emt 0:00:13]} Bb4+ {[%emt 0:00:10]} 54. Bc3 {[%emt 0:00:15]} Bd6 {[%emt 0:00:50]} 55. Qd2 {[%emt 0:00:14]} Qb5 {[%emt 0:00:36]} 56. Bd4 {[%emt 0:00:36]} Ne5 {[%emt 0:00:30]} 57. Nc3 {[%emt 0:00:58]} Qb4 {[%emt 0:00:47]} 58. Nxd5 {[%emt 0:01:03]} Qb7 {[%emt 0:00:38]} 59. Bc3 {[%emt 0:01:11]} Qb8 {[%emt 0:00:18]} 60. Ne4 {[%emt 0:00:49]} Bxe4 {[%emt 0:00:24]} 61. fxe4 {[%emt 0:00:04]} Qh8 {[%emt 0:00:29]} 62. Kd1 {[%emt 0:00:30]} Qh1+ {[%emt 0:00:38]} 63. Kc2 {[%emt 0:00:06]} Qf1 {[%emt 0:00:30]} 64. Ne3 {[%emt 0:00:59]} Qa6 {[%emt 0:00:13]} 65. a4 {[%emt 0:00:20]} Kg6 {[%emt 0:00:31]} 66. Nf5 {[%emt 0:00:56]} Ba3 {[%emt 0:00:43]} 67. Nd4 {[%emt 0:01:33]} Qf1 {[%emt 0:00:41]} 68. Nb5 {[%emt 0:00:28]} Bc5 {[%emt 0:00:23]} 69. Nc7 {[%emt 0:00:42]} Qg1 {[%emt 0:00:35]} 70. Nd5 {[%emt 0:00:13]} a6 {[%emt 0:00:31]} 71. Kb2 {[%emt 0:00:33]} Qf1 {[%emt 0:00:20]} 72. Kc2 {[%emt 0:00:34]} Ba3 {[%emt 0:00:37]} 73. Ne3 {[%emt 0:00:45]} Qf4 {[%emt 0:00:25]} 74. Bxe5 {[%emt 0:00:23]} Qxe4+ {[%emt 0:00:42]} 75. Qd3 {[%emt 0:00:14]} Qxd3+ {[%emt 0:00:04]} 76. Kxd3 {[%emt 0:00:03]} fxe5 {[%emt 0:00:02]} 77. Ke4 {[%emt 0:00:08]} Kf6 {[%emt 0:01:16]} 78. Nc4 {[%emt 0:00:09]} Bc1 {[%emt 0:00:21]} 79. Nxe5 {[%emt 0:00:03]} Ke6 {[%emt 0:00:23]} 80. b4 {[%emt 0:00:36]} Ba3 {[%emt 0:00:37]} 81. Nd3 {[%emt 0:00:22]} Kd6 {[%emt 0:00:39]} 82. g4 {[%emt 0:00:15]} Kc6 {[%emt 0:00:34]} 83. Kd4 {[%emt 0:00:40]} a5 {[%emt 0:00:21]} 84. Ne5+ {[%emt 0:00:58]} Kb7 {[%emt 0:00:17]} 85. b5 {[%emt 0:00:32]} Bb4 {[%emt 0:00:47]} 86. Kd5 {[%emt 0:00:07]} Be1 {[%emt 0:00:33]} 87. Nf3 {[%emt 0:00:23]} Bh4 {[%emt 0:00:17]} 88. Nxh4 {[%emt 0:00:18]} 1-0

[Event "94th FRA-ch Women 2019"]
[Site "Chartres"]
[Date "2019.08.21"]
[Round "5.2"]
[White "Broly, Mathilde"]
[Black "Navrotescu, Andreea-Cristiana"]
[Result "1-0"]
[ECO "A28"]
[WhiteElo "2177"]
[BlackElo "2210"]
[Annotator "NA"]
[PlyCount "95"]
[EventDate "2019.08.17"]
[EventType "tourn"]
[EventCountry "FRA"]
[SourceTitle "playchess.com"]
[Source "ChessBase"]
[SourceQuality "1"]
[TimeControl "40/5400+30:1800+30"]

1. c4 {[%emt 0:00:00]} e5 {[%emt 0:00:00]} 2. Nc3 {[%emt 0:00:00]} Nf6 {[%emt 0:00:05]} 3. Nf3 {[%emt 0:00:25]} Nc6 {[%emt 0:00:30]} 4. e3 {[%emt 0:01:39]} Bb4 {[%emt 0:00:19]} 5. Qc2 {[%emt 0:01:53]} O-O {[%emt 0:05:04]} 6. Nd5 {[%emt 0:05:30]} Bd6 {[%emt 0:15:24]} 7. a3 {[%emt 0:17:34]} Nxd5 {[%emt 0:00:57]} 8. cxd5 {[%emt 0:00:09]} Ne7 {[%emt 0:00:12]} 9. Bc4 {[%emt 0:00:42]} b5 {[%emt 0:08:59]} 10. Bxb5 {[%emt 0:10:45]} Nxd5 {[%emt 0:02:43]} 11. b3 {[%emt 0:03:09]} c6 {[%emt 0:01:42]} 12. Be2 {[%emt 0:01:54]} f5 {[%emt 0:02:19]} 13. d4 {[%emt 0:01:54]} e4 {[%emt 0:00:24]} 14. Ne5 {[%emt 0:04:06]} Bb7 {[%emt 0:04:33]} 15. Nc4 {[%emt 0:10:27]} Bc7 {[%emt 0:02:17]} 16. g3 {[%emt 0:03:52]} Qf6 {[%emt 0:03:12]} 17. h4 {[%emt 0:34:31]} c5 {[%emt 0:07:24]} 18. Bb2 {[%emt 0:00:00]} cxd4 {[%emt 0:00:24]} 19. Bxd4 {[%emt 0:00:00]} Qh6 {[%emt 0:00:44]} 20. Kd2 {[%emt 0:00:00]} Ne7 {[%emt 0:03:39]} 21. Ne5 {[%emt 0:00:00]} Rac8 {[%emt 0:05:24]} 22. Qb2 {[%emt 0:00:00]} d6 {[%emt 0:03:00]} 23. Bc4+ {[%emt 0:00:00]} Bd5 {[%emt 0:01:41]} 24. Nc6 {[%emt 0:00:00]} Kf7 {[%emt 0:14:34]} 25. Nxe7 {[%emt 0:00:00]} Ba5+ {[%emt 0:01:04]} 26. b4 {[%emt 0:00:00]} Bxc4 {[%emt 0:00:29]} 27. Nxc8 {[%emt 0:00:00]} Bc7 {[%emt 0:00:46]} 28. Nxa7 {[%emt 0:00:00]} Qh5 {[%emt 0:00:01]} 29. Kc3 {[%emt 0:00:00]} d5 {[%emt 0:00:19]} 30. Qd2 {[%emt 0:00:00]} Qg6 {[%emt 0:01:23]} 31. a4 {[%emt 0:00:00]} Qa6 {[%emt 0:01:11]} 32. Nb5 {[%emt 0:00:00]} Bd8 {[%emt 0:02:19]} 33. Rhc1 {[%emt 0:00:00]} Be7 {[%emt 0:00:27]} 34. Kb2 {[%emt 0:00:00]} Rc8 {[%emt 0:01:55]} 35. Bc3 {[%emt 0:00:00]} Bd3 {[%emt 0:00:40]} 36. Nd4 {[%emt 0:00:00]} g6 {[%emt 0:00:53]} 37. Nb3 {[%emt 0:00:00]} Rb8 {[%emt 0:02:24]} 38. b5 {[%emt 0:10:30]} Qd6 {[%emt 0:01:29]} 39. Bd4 {[%emt 0:00:00]} Bc4 {[%emt 0:01:05]} 40. Qc3 {[%emt 0:00:00]} Rc8 {[%emt 0:01:26]} 41. a5 {[%emt 0:23:25]} Qd7 {[%emt 0:31:06]} 42. a6 {[%emt 0:00:00]} Qxb5 {[%emt 0:00:00]} 43. Ra5 {[%emt 0:00:00]} Qb8 {[%emt 0:00:00]} 44. a7 {[%emt 0:00:00]} Qb7 {[%emt 0:00:00]} 45. a8=Q {[%emt 0:00:00]} Rxa8 {[%emt 0:00:00]} 46. Rxa8 {[%emt 0:00:00]} Qxa8 {[%emt 0:00:00]} 47. Qa5 {[%emt 0:00:00]} Qc8 {[%emt 0:00:00]} 48. Qxd5+ {[%emt 0:11:35]} 1-0

[Event "94th FRA-ch Women 2019"]
[Site "Chartres"]
[Date "2019.08.21"]
[Round "5.3"]
[White "Milliet, Sophie"]
[Black "Richard, Emma"]
[Result "1/2-1/2"]
[ECO "B30"]
[WhiteElo "2397"]
[BlackElo "2104"]
[Annotator "NA"]
[PlyCount "132"]
[EventDate "2019.08.17"]
[EventType "tourn"]
[EventCountry "FRA"]
[SourceTitle "playchess.com"]
[Source "ChessBase"]
[SourceQuality "1"]
[TimeControl "40/5400+30:1800+30"]

1. e4 {[%emt 0:00:00]} c5 {[%emt 0:00:00]} 2. Nf3 {[%emt 0:00:00]} Nc6 {[%emt 0:00:00]} 3. Bb5 {[%emt 0:00:00]} e6 {[%emt 0:00:00]} 4. O-O {[%emt 0:01:05]} Nge7 {[%emt 0:00:00]} 5. d4 {[%emt 0:00:18]} cxd4 {[%emt 0:01:19]} 6. Nxd4 {[%emt 0:00:04]} Ng6 {[%emt 0:03:52]} 7. Be3 {[%emt 0:05:11]} Qc7 {[%emt 0:05:01]} 8. Be2 {[%emt 0:02:57]} Nxd4 {[%emt 0:14:53]} 9. Bxd4 {[%emt 0:01:34]} Bd6 {[%emt 0:03:04]} 10. g3 {[%emt 0:00:33]} O-O {[%emt 0:01:07]} 11. c4 {[%emt 0:06:09]} b6 {[%emt 0:06:47]} 12. Nc3 {[%emt 0:01:43]} Qb8 {[%emt 0:17:00]} 13. Qd2 {[%emt 0:05:43]} Bb7 {[%emt 0:06:12]} 14. f4 {[%emt 0:28:08]} Bb4 {[%emt 0:13:51]} 15. a3 {[%emt 0:00:43]} Bxc3 {[%emt 0:01:05]} 16. Bxc3 {[%emt 0:00:10]} Qc7 {[%emt 0:01:26]} 17. b4 {[%emt 0:11:23]} f6 {[%emt 0:00:54]} 18. Rad1 {[%emt 0:03:55]} Rad8 {[%emt 0:03:12]} 19. Qd6 {[%emt 0:03:09]} Qc8 {[%emt 0:05:51]} 20. Bd3 {[%emt 0:12:01]} Nh8 {[%emt 0:00:17]} 21. Qd4 {[%emt 0:01:36]} Nf7 {[%emt 0:00:46]} 22. Rde1 {[%emt 0:00:55]} d6 {[%emt 0:03:27]} 23. Bb2 {[%emt 0:02:48]} e5 {[%emt 0:01:56]} 24. Qe3 {[%emt 0:00:53]} Rfe8 {[%emt 0:00:21]} 25. f5 {[%emt 0:00:23]} Qd7 {[%emt 0:02:53]} 26. h4 {[%emt 0:00:33]} Rc8 {[%emt 0:05:22]} 27. Rf2 {[%emt 0:01:51]} Nh6 {[%emt 0:00:45]} 28. Qe2 {[%emt 0:00:59]} b5 {[%emt 0:00:23]} 29. Rd1 {[%emt 0:02:06]} bxc4 {[%emt 0:01:22]} 30. Bxc4+ {[%emt 0:00:04]} Kh8 {[%emt 0:00:07]} 31. Bb3 {[%emt 0:02:10]} Rcd8 {[%emt 0:01:24]} 32. g4 {[%emt 0:00:49]} Bc6 {[%emt 0:00:33]} 33. g5 {[%emt 0:01:15]} Ng8 {[%emt 0:00:17]} 34. Bc1 {[%emt 0:04:08]} Ba4 {[%emt 0:00:39]} 35. Bxa4 {[%emt 0:01:36]} Qxa4 {[%emt 0:00:04]} 36. g6 {[%emt 0:00:23]} h6 {[%emt 0:00:23]} 37. Qc2 {[%emt 0:00:07]} Qa6 {[%emt 0:01:06]} 38. Qd3 {[%emt 0:00:05]} Qb7 {[%emt 0:00:18]} 39. Be3 {[%emt 0:00:27]} Rd7 {[%emt 0:00:14]} 40. Rc2 {[%emt 0:00:54]} Ne7 {[%emt 0:01:05]} 41. Rc5 {[%emt 0:09:01]} Red8 {[%emt 0:18:47]} 42. Ra5 {[%emt 0:03:29]} Qa8 {[%emt 0:04:35]} 43. b5 {[%emt 0:09:37]} d5 {[%emt 0:01:34]} 44. b6 {[%emt 0:04:48]} d4 {[%emt 0:00:57]} 45. Bd2 {[%emt 0:01:13]} Nc8 {[%emt 0:00:19]} 46. Rb1 {[%emt 0:01:27]} Qc6 {[%emt 0:03:02]} 47. bxa7 {[%emt 0:00:07]} Rxa7 {[%emt 0:00:12]} 48. Rab5 {[%emt 0:02:16]} Nd6 {[%emt 0:02:26]} 49. Rd5 {[%emt 0:02:14]} Rda8 {[%emt 0:01:07]} 50. Rc1 {[%emt 0:00:42]} Qb6 {[%emt 0:00:06]} 51. Bb4 {[%emt 0:00:12]} Ne8 {[%emt 0:01:16]} 52. Qb5 {[%emt 0:00:26]} Qxb5 {[%emt 0:00:58]} 53. Rxb5 {[%emt 0:00:01]} Rd7 {[%emt 0:00:30]} 54. Rd5 {[%emt 0:01:54]} Rb7 {[%emt 0:00:07]} 55. Kf2 {[%emt 0:00:18]} Kg8 {[%emt 0:00:32]} 56. Ke2 {[%emt 0:00:15]} Rc7 {[%emt 0:01:28]} 57. Rcc5 {[%emt 0:01:04]} Rb7 {[%emt 0:00:38]} 58. Kd3 {[%emt 0:00:08]} Rc7 {[%emt 0:00:34]} 59. Rxc7 {[%emt 0:00:43]} Nxc7 {[%emt 0:00:04]} 60. Rd7 {[%emt 0:00:04]} Rc8 {[%emt 0:00:27]} 61. Rd6 {[%emt 0:00:51]} Nb5 {[%emt 0:00:50]} 62. Ra6 {[%emt 0:00:30]} Nc3 {[%emt 0:00:33]} 63. a4 {[%emt 0:00:35]} Nd1 {[%emt 0:00:10]} 64. Be1 {[%emt 0:00:20]} Nb2+ {[%emt 0:00:31]} 65. Ke2 {[%emt 0:00:03]} d3+ {[%emt 0:00:40]} 66. Ke3 {[%emt 0:00:06]} Rd8 {[%emt 0:00:08]} 1/2-1/2

[Event "94th FRA-ch Women 2019"]
[Site "Chartres"]
[Date "2019.08.21"]
[Round "5.4"]
[White "Monpeurt, Cyrielle"]
[Black "Maisuradze, Nino"]
[Result "1/2-1/2"]
[ECO "B34"]
[WhiteElo "2171"]
[BlackElo "2203"]
[Annotator "NA"]
[PlyCount "137"]
[EventDate "2019.08.17"]
[EventType "tourn"]
[EventCountry "FRA"]
[SourceTitle "playchess.com"]
[Source "ChessBase"]
[SourceQuality "1"]
[TimeControl "40/5400+30:1800+30"]

1. e4 {[%emt 0:00:00]} c5 {[%emt 0:00:00]} 2. Nc3 {[%emt 0:00:00]} Nc6 {[%emt 0:00:07]} 3. Nge2 {[%emt 0:00:00]} g6 {[%emt 0:01:31]} 4. d4 {[%emt 0:00:07]} cxd4 {[%emt 0:00:11]} 5. Nxd4 {[%emt 0:00:06]} Bg7 {[%emt 0:00:59]} 6. Be3 {[%emt 0:00:22]} Nf6 {[%emt 0:02:06]} 7. Nxc6 {[%emt 0:00:21]} bxc6 {[%emt 0:00:53]} 8. e5 {[%emt 0:00:06]} Ng8 {[%emt 0:02:22]} 9. Bd4 {[%emt 0:00:08]} Qa5 {[%emt 0:00:47]} 10. f4 {[%emt 0:00:21]} f6 {[%emt 0:03:09]} 11. Qd2 {[%emt 0:00:45]} fxe5 {[%emt 0:00:27]} 12. fxe5 {[%emt 0:00:06]} c5 {[%emt 0:03:10]} 13. Bf2 {[%emt 0:00:31]} Rb8 {[%emt 0:02:19]} 14. Bc4 {[%emt 0:00:57]} Rxb2 {[%emt 0:07:53]} 15. Bg3 {[%emt 0:01:17]} Ba6 {[%emt 0:27:11]} 16. Bxa6 {[%emt 0:05:01]} Qxa6 {[%emt 0:00:09]} 17. Rd1 {[%emt 0:00:09]} Rb7 {[%emt 0:05:12]} 18. Qd5 {[%emt 0:01:35]} Nh6 {[%emt 0:28:04]} 19. Ne4 {[%emt 0:08:23]} Qc6 {[%emt 0:02:27]} 20. Qxc6 {[%emt 0:03:19]} dxc6 {[%emt 0:00:01]} 21. Nxc5 {[%emt 0:00:13]} Rb4 {[%emt 0:08:16]} 22. O-O {[%emt 0:02:36]} Nf5 {[%emt 0:01:49]} 23. Ne6 {[%emt 0:10:13]} Kf7 {[%emt 0:00:08]} 24. Nd8+ {[%emt 0:00:05]} Ke8 {[%emt 0:02:03]} 25. Nxc6 {[%emt 0:00:12]} Rc4 {[%emt 0:00:20]} 26. Rd8+ {[%emt 0:22:13]} Kf7 {[%emt 0:00:01]} 27. Rxh8 {[%emt 0:00:06]} Bxh8 {[%emt 0:00:01]} 28. Nxa7 {[%emt 0:00:09]} Ke6 {[%emt 0:00:49]} 29. Bf4 {[%emt 0:11:28]} Nd4 {[%emt 0:00:22]} 30. g3 {[%emt 0:03:07]} Rc7 {[%emt 0:00:48]} 31. Be3 {[%emt 0:00:54]} Bxe5 {[%emt 0:00:13]} 32. Rd1 {[%emt 0:00:58]} Nf5 {[%emt 0:01:24]} 33. Bf2 {[%emt 0:02:09]} Rxc2 {[%emt 0:00:02]} 34. a3 {[%emt 0:00:40]} Rc4 {[%emt 0:00:48]} 35. Nb5 {[%emt 0:00:22]} Nd6 {[%emt 0:00:21]} 36. Nd4+ {[%emt 0:01:25]} Kd7 {[%emt 0:00:21]} 37. Nf3 {[%emt 0:00:55]} Bf6 {[%emt 0:00:31]} 38. Bd4 {[%emt 0:03:21]} Bxd4+ {[%emt 0:00:22]} 39. Nxd4 {[%emt 0:00:36]} Rc5 {[%emt 0:00:54]} 40. Ne2 {[%emt 0:02:43]} Rc2 {[%emt 0:00:44]} 41. Kf2 {[%emt 0:30:17]} e5 {[%emt 0:05:18]} 42. Ra1 {[%emt 0:00:00]} Nf5 {[%emt 0:02:47]} 43. Ke1 {[%emt 0:00:00]} Nd4 {[%emt 0:07:02]} 44. Nxd4 {[%emt 0:00:00]} exd4 {[%emt 0:00:00]} 45. Rd1 {[%emt 0:00:00]} Rxh2 {[%emt 0:02:54]} 46. Rxd4+ {[%emt 0:00:00]} Ke6 {[%emt 0:00:31]} 47. Rh4 {[%emt 0:00:00]} Rg2 {[%emt 0:03:09]} 48. Rxh7 {[%emt 0:00:00]} Rxg3 {[%emt 0:00:05]} 49. a4 {[%emt 0:00:00]} Ra3 {[%emt 0:00:18]} 50. Rh4 {[%emt 0:00:00]} Ra2 {[%emt 0:02:54]} 51. Kf1 {[%emt 0:00:00]} Kf5 {[%emt 0:00:37]} 52. Rb4 {[%emt 0:00:00]} g5 {[%emt 0:00:34]} 53. Kg1 {[%emt 0:00:00]} Kg6 {[%emt 0:00:12]} 54. Rb6+ {[%emt 0:00:00]} Kh5 {[%emt 0:00:05]} 55. Rb4 {[%emt 0:00:00]} g4 {[%emt 0:00:08]} 56. Rc4 {[%emt 0:00:00]} Kh4 {[%emt 0:00:06]} 57. Rc1 {[%emt 0:00:00]} Kh3 {[%emt 0:00:37]} 58. Rb1 {[%emt 0:00:00]} Rxa4 {[%emt 0:01:18]} 59. Rb3+ {[%emt 0:00:00]} g3 {[%emt 0:00:04]} 60. Rb1 {[%emt 0:00:00]} Ra2 {[%emt 0:03:45]} 61. Rc1 {[%emt 0:00:00]} Rg2+ {[%emt 0:08:51]} 62. Kh1 {[%emt 0:00:00]} Rb2 {[%emt 0:00:00]} 63. Kg1 {[%emt 0:00:00]} Rb3 {[%emt 0:00:00]} 64. Ra1 {[%emt 0:00:04]} g2 {[%emt 0:00:00]} 65. Rc1 {[%emt 0:00:32]} Rf3 {[%emt 0:00:00]} 66. Ra1 {[%emt 0:00:09]} Kg3 {[%emt 0:00:00]} 67. Rb1 {[%emt 0:00:05]} Re3 {[%emt 0:00:00]} 68. Ra1 {[%emt 0:00:08]} Kf3 {[%emt 0:00:00]} 69. Rb1 {[%emt 0:00:19]} 1/2-1/2